bitfinex/quotes_ETHUSD_20250808
["timestamp","ask_amount","ask_price","bid_price","bid_amount"]
[1754615996910,9.26854533,3891.8,3891.3,2.56983527]
[1754615997208,9.26854533,3891.8,3891.2,4.549]
[1754615997411,12.73601956,3892.8,3891.3,2.568]
[1754615997588,12.73601956,3892.8,3892.7,2.56891103]
[1754615998207,12.73601956,3892.8,3892.5,2.56902664]
[1754615998375,0.55,3892.7,3892.2,2.56924104]
[1754615998576,0.55,3892.7,3890.9,2.568]
[1754615998577,3.55,3892.7,3890.9,2.568]
[1754615998909,3.55,3892.7,3891.0,4.544]
[1754615999095,3.55,3892.7,3890.6,2.568]
[1754615999306,3.55,3892.7,3891.1,2.56995354]
[1754615999520,3.55,3892.7,3890.4,2.57042977]
[1754615999805,3.55,3892.7,3890.3,2.57049584]
[1754615999806,3.9942,3892.7,3890.2,2.568]
[1754616000023,3.9942,3892.7,3890.3,1.41036235]
[1754616000310,3.9942,3892.7,3890.4,2.568]
[1754616000509,3.9942,3892.7,3891.0,2.56997181]
[1754616000818,3.9942,3892.7,3892.3,2.56914087]
[1754616001014,3.55,3892.7,3892.6,2.56897703]
[1754616001174,3.0,3892.7,3892.6,2.56897703]
[1754616001383,3.0,3892.7,3889.3,18.82028698]
[1754616001616,13.53493926,3891.5,3891.4,2.56976923]
[1754616001795,16.53493926,3891.5,3891.4,2.56976923]
[1754616001977,3.0,3892.7,3892.0,2.08768852]
[1754616002177,3.0,3892.7,3891.2,5.26490131]
[1754616002419,3.0,3892.7,3891.0,2.57003341]
[1754616002624,12.73601956,3892.8,3892.6,2.52897703]
[1754616002829,0.04,3892.9,3890.7,10.0]
[1754616003124,0.04,3892.9,3892.8,2.56884504]
[1754616003337,0.04,3892.9,3892.7,2.56886929]
[1754616003629,0.04,3892.9,3891.4,4.528]
[1754616003838,0.4442,3892.8,3890.7,4.526]
[1754616004120,0.55,3892.7,3890.4,1.7315304]
[1754616004336,0.55,3892.7,3891.4,2.5697072]
[1754616004527,0.55,3892.7,3890.3,2.568]
[1754616004684,0.55,3892.7,3887.1,0.26026349]
[1754616004685,3.55,3892.5,3888.4,2.26335993]
[1754616004884,3.55,3892.3,3889.3,2.57115676]
[1754616005083,3.55,3892.3,3891.2,2.56983706]
[1754616005310,3.55,3892.3,3891.3,2.56977292]
[1754616005517,3.55,3892.3,3889.5,6.164]
[1754616005815,3.55,3892.3,3892.2,0.1288]
[1754616006016,2.9303,3892.3,3892.2,0.1288]
[1754616006266,1.09125407,3892.3,3892.2,0.1288]
[1754616006859,1.09125407,3892.3,3892.2,2.69804104]
[1754616007163,0.54125407,3892.3,3892.2,2.56924104]
[1754616007314,0.54125407,3892.3,3892.2,2.56844104]
[1754616007720,1e-08,3892.3,3892.2,2.52844104]
[1754616007952,0.04,3893.9,3892.2,2.52844104]
[1754616008129,0.04,3893.9,3893.0,2.56871307]
[1754616008327,2.45552169,3893.1,3893.0,2.56871307]
[1754616008520,0.04,3893.9,3893.8,2.56818532]
[1754616008716,0.04,3893.9,3893.8,2.01818532]
[1754616008921,0.00106899,3893.9,3893.8,6.53718532]
[1754616009166,0.00106899,3893.9,3893.8,9.23218532]
[1754616009363,0.00106899,3893.9,3893.8,9.23318532]
[1754616009571,0.00106899,3893.9,3892.6,2.56894545]
[1754616009868,0.00106899,3893.9,3893.8,2.56818532]
[1754616010078,0.00106899,3893.9,3893.8,7.08518532]
[1754616010276,0.00106899,3893.9,3893.8,7.13668532]
[1754616010429,0.00106899,3893.9,3893.8,5.13418532]
[1754616010635,0.00106899,3893.9,3893.8,7.08418532]
[1754616010854,0.00106899,3893.9,3893.8,7.13568532]
[1754616011189,0.00106899,3893.9,3893.8,7.08318532]
[1754616011385,0.04,3895.9,3894.8,2.56752593]
[1754616012032,0.04,3895.9,3894.7,4.51]
[1754616012249,0.55,3894.8,3894.7,4.51]
[1754616012862,0.55,3894.8,3893.5,2.56833573]
[1754616013033,0.4842,3894.9,3893.5,2.56836093]
[1754616013246,0.4842,3894.9,3893.4,4.509]
[1754616013565,0.04,3894.9,3893.4,4.509]
[1754616013792,0.04,3894.9,3894.5,2.567709]
[1754616013971,0.04,3894.9,3893.4,0.0515]
[1754616014170,0.04,3894.9,3894.3,2.56780944]
[1754616014507,0.04,3894.9,3893.3,2.566]
[1754616014508,0.04,3894.9,3894.2,4.507]
[1754616014673,0.4794,3894.9,3893.6,2.56831114]
[1754616015001,0.55,3894.8,3893.8,2.56818532]
[1754616015164,0.55,3894.8,3893.8,4.506]
[1754616015368,0.55,3894.8,3892.6,2.567]
[1754616015369,0.55,3894.6,3892.6,2.567]
[1754616015566,0.04,3894.9,3892.7,34.5575]
[1754616015802,0.04,3894.9,3892.9,3.0]
[1754616016099,0.55,3894.8,3893.4,3.0]
[1754616016300,0.55,3894.8,3894.7,2.56759185]
[1754616016487,0.04,3894.9,3894.8,2.56752593]
[1754616016805,0.04,3894.9,3894.2,0.0515]
[1754616016806,0.04,3894.9,3894.4,4.506]
[1754616017113,0.04,3894.9,3894.8,0.128]
[1754616017322,0.04,3894.9,3890.8,1.28305204]
[1754616017323,1.08500454,3892.7,3889.0,1.8875]
[1754616017502,3.0,3891.3,3889.0,1.8875]
[1754616017708,1.63524802,3891.2,3889.0,1.8875]
[1754616017902,1.73815602,3891.2,3889.0,1.8875]
[1754616018430,0.542308,3891.2,3889.0,1.8875]
[1754616019017,0.542308,3891.2,3889.7,1.8875]
[1754616019018,0.102908,3891.2,3889.7,1.8875]
[1754616019524,0.5733,3891.3,3890.5,0.001]
[1754616019729,0.1339,3891.3,3890.5,0.001]
[1754616020700,0.1339,3891.3,3890.6,0.4458]
[1754616020938,0.1339,3891.3,3891.2,2.56990131]
[1754616021222,0.1339,3891.3,3891.2,7.2703]
[1754616021444,0.6839,3891.3,3891.2,1.8875]
[1754616021644,0.1339,3891.3,3891.2,4.45740131]
[1754616021961,0.1339,3891.3,3891.2,4.90320131]
[1754616022115,0.1339,3891.3,3891.2,9.38740131]
[1754616022315,0.1339,3891.3,3891.2,6.8175]
[1754616022615,0.1339,3891.3,3891.2,9.83320131]
[1754616022827,0.0491381,3891.3,3891.2,9.83320131]
[1754616023121,0.01597296,3891.3,3891.2,9.83320131]
[1754616023330,0.002,3892.7,3891.9,2.56939497]
[1754616023533,0.002,3892.7,3892.2,2.56923524]
[1754616023731,0.002,3892.7,3892.1,2.56930705]
[1754616023926,0.002,3892.7,3892.0,4.921]
[1754616024125,0.002,3892.7,3892.5,2.56903501]
[1754616024347,0.002,3892.7,3892.3,2.56912613]
[1754616024652,0.002,3892.7,3892.6,2.56897703]
[1754616024851,0.002,3893.1,3893.0,2.56871307]
[1754616025011,0.002,3893.1,3893.0,7.48071307]
[1754616025216,0.002,3893.1,3893.0,9.81401307]
[1754616025513,0.002,3893.1,3893.0,9.36621307]
[1754616026262,0.002,3893.1,3893.0,9.81201307]
[1754616026761,0.002,3893.1,3893.0,4.45621307]
[1754616026957,0.002,3893.1,3893.0,9.35321307]
[1754616027342,0.002,3893.1,3893.0,9.79901307]
[1754616027715,0.002,3893.1,3893.0,0.1288]
[1754616028041,0.002,3893.1,3893.0,5.0188]
[1754616028417,0.002,3893.1,3893.0,7.58751307]
[1754616028752,0.002,3893.1,3893.0,9.47501307]
[1754616029323,0.002,3893.1,3893.0,9.92081307]
[1754616029826,0.002,3893.1,3893.0,9.90681307]
[1754616030354,0.002,3893.1,3893.0,9.46101307]
[1754616030857,0.002,3893.1,3893.0,9.89781307]
[1754616031259,0.002,3893.1,3893.0,9.45201307]
[1754616031457,0.002,3893.1,3893.0,9.89781307]
[1754616031874,0.002,3893.1,3893.0,4.58501307]
[1754616032038,0.002,3893.1,3893.0,0.1288]
[1754616032239,0.002,3893.1,3893.0,4.9868]
[1754616032444,0.002,3893.1,3893.0,7.42671307]
[1754616032633,0.002,3893.1,3893.0,9.88881307]
[1754616032979,0.002,3893.1,3893.0,7.55451307]
[1754616033273,0.002,3893.1,3893.0,9.88781307]
[1754616033874,0.002,3893.1,3893.0,9.44201307]
[1754616034075,0.002,3893.1,3893.0,7.54551307]
[1754616034382,0.002,3893.1,3893.0,2.69751307]
[1754616034528,0.002,3893.1,3893.0,7.54551307]
[1754616034728,0.002,3893.1,3893.0,4.9728]
[1754616034957,0.002,3893.1,3893.0,0.1288]
[1754616035174,0.552,3893.1,3893.0,2.69751307]
[1754616035379,0.552,3893.1,3893.0,0.1288]
[1754616035669,0.552,3893.1,3893.0,4.9698]
[1754616035979,0.552,3893.1,3893.0,7.53851307]
[1754616036147,0.55,3893.0,3892.2,6.165]
[1754616036355,0.3495,3893.1,3892.2,6.165]
[1754616036561,0.002,3893.1,3893.0,2.69751307]
[1754616036951,0.002,3893.1,3893.0,0.1288]
[1754616037184,0.002,3893.1,3893.0,4.9578]
[1754616037495,0.002,3893.1,3893.0,7.52651307]
[1754616037793,0.002,3893.1,3893.0,9.41401307]
[1754616038660,0.002,3893.1,3893.0,4.58501307]
[1754616038872,0.002,3893.1,3893.0,7.51351307]
[1754616039389,0.002,3893.1,3893.0,4.9418]
[1754616039678,1.10077901,3893.1,3893.0,2.3325]
[1754616039977,1.10072424,3893.1,3893.0,7.15841307]
[1754616040199,0.552,3893.1,3893.0,7.70713829]
[1754616040489,10.21189795,3896.4,3893.4,2.703]
[1754616040647,3.205,3899.8,3894.2,2.703]
[1754616040648,0.552,3895.8,3894.2,2.703]
[1754616040847,0.552,3895.8,3895.2,2.703]
[1754616041047,10.21189795,3898.0,3895.5,2.703]
[1754616041249,1.0211898,3897.9,3895.6,6.25172522]
[1754616041558,9.23181357,3898.0,3896.2,2.56660335]
[1754616041879,1.06975086,3899.8,3896.3,8.20148522]
[1754616041880,0.77048,3898.2,3896.3,8.20148522]
[1754616042082,10.21189795,3898.8,3896.5,2.703]
[1754616042286,0.770395,3898.7,3896.6,0.54872522]
[1754616042482,0.3429,3898.6,3896.7,5.35172522]
[1754616042685,9.59606003,3898.9,3896.8,6.53790581]
[1754616042995,10.21189795,3898.9,3896.9,0.54872522]
[1754616043195,10.21189795,3898.9,3898.1,0.04]
[1754616043347,10.21189795,3898.2,3898.1,0.04]
[1754616043547,10.21189795,3898.2,3898.1,0.58706542]
[1754616044200,10.21189795,3898.9,3898.1,0.58706542]
[1754616044353,0.55,3898.8,3898.2,0.54706542]
[1754616044558,6.163,3900.1,3898.3,0.54706542]
[1754616044889,5.23925056,3900.1,3899.1,10.931192]
[1754616045088,9.32608689,3900.5,3899.2,0.92774965]
[1754616045254,6.67175211,3900.5,3899.2,1.16569772]
[1754616045464,6.08817945,3900.5,3899.2,1.16569772]
[1754616045694,1.2794327,3902.4,3899.1,10.971192]
[1754616045695,10.98196695,3901.1,3899.3,1.16569772]
[1754616045968,10.98196695,3901.1,3899.4,4.71569772]
[1754616045969,10.21189795,3901.1,3899.4,4.71569772]
[1754616046167,6.12381681,3900.5,3899.5,0.92774426]
[1754616046357,10.21189795,3899.8,3899.7,0.55]
[1754616046555,0.3205,3901.9,3899.7,1.47774426]
[1754616046763,10.21189795,3900.9,3899.9,0.55]
[1754616046988,10.21189795,3900.9,3900.0,0.92774426]
[1754616047299,9.27746007,3900.9,3899.4,4.781]
[1754616047467,6.50752347,3900.9,3899.5,0.92157665]
[1754616047656,1.6611972,3900.9,3899.6,0.92157665]
[1754616047857,4.776,3901.5,3899.7,0.92157665]
[1754616048093,3.52576576,3901.5,3899.8,0.92157665]
[1754616048303,10.17189795,3901.6,3900.1,0.04]
[1754616048464,10.21189795,3902.3,3900.2,0.94634068]
[1754616048797,0.86739161,3902.4,3900.3,0.92070097]
[1754616049011,0.86739161,3902.4,3901.6,0.128]
[1754616049308,0.128,3902.3,3901.9,0.55]
[1754616049455,8.90482748,3903.2,3902.1,0.55]
[1754616049658,4.764,3903.1,3902.3,0.55]
[1754616049894,0.128,3902.7,3902.4,0.54320531]
[1754616050064,0.128,3902.7,3902.1,0.128]
[1754616050400,10.21189795,3902.9,3900.5,3.0]
[1754616050566,0.128,3902.4,3901.9,0.128]
[1754616050766,0.128,3902.5,3901.9,0.128]
[1754616050974,0.128,3902.5,3900.5,1.7175908]
[1754616051158,0.128,3902.5,3900.4,4.758]
[1754616051159,2.19704215,3903.4,3900.4,7.32181304]
[1754616051386,2.19704215,3903.4,3900.4,2.96330697]
[1754616051585,6.94704215,3903.4,3900.5,0.447]
[1754616051919,10.02810088,3903.0,3900.4,0.769643]
[1754616052092,0.128,3902.4,3901.8,0.128]
[1754616052281,1.03620204,3902.3,3898.9,0.447]
[1754616052485,10.17231862,3901.9,3901.4,0.128]
[1754616052685,0.128,3901.6,3901.1,0.128]
[1754616053085,9.97997502,3902.0,3900.3,10.931192]
[1754616053326,4.745,3901.9,3900.3,9.2639653]
[1754616053483,2.56245104,3902.6,3900.3,9.2639653]
[1754616053686,2.58214268,3902.7,3900.3,9.2639653]
[1754616053687,0.128,3902.0,3901.4,0.128]
[1754616053914,0.128,3902.0,3901.5,0.55]
[1754616054107,0.128,3902.0,3901.4,0.128]
[1754616054420,0.319,3901.9,3900.3,9.2639653]
[1754616054592,0.23488566,3901.8,3901.3,0.128]
[1754616054790,2.56262186,3902.3,3901.4,0.23488566]
[1754616055003,0.00252585,3901.9,3901.5,0.23488566]
[1754616055204,0.00252585,3901.9,3900.3,9.2639653]
[1754616055205,2.14587228,3902.3,3900.3,9.191113]
[1754616055410,1.7245427,3902.7,3900.3,6.52399432]
[1754616055588,2.56272263,3902.1,3900.3,6.52079432]
[1754616055786,0.1272,3900.4,3900.3,6.52079432]
[1754616056203,2.5638396,3900.4,3900.3,6.52079432]
[1754616056407,2.6918396,3900.4,3900.3,4.72512354]
[1754616056733,7.13669491,3900.4,3900.3,4.72512354]
[1754616057236,7.4228396,3900.4,3900.3,1.29559124]
[1754616057440,2.5644404,3899.5,3898.7,8.94580652]
[1754616057649,2.56489176,3898.8,3898.7,8.94580652]
[1754616057931,0.128,3898.8,3898.7,8.94580652]
[1754616058098,7.41889176,3898.8,3898.7,8.94580652]
[1754616058297,4.726,3898.8,3898.7,7.14904507]
[1754616058492,6.156,3899.5,3898.7,7.14904507]
[1754616058830,6.156,3899.5,3898.4,0.001]
[1754616058831,2.56490872,3898.8,3898.4,0.001]
[1754616059027,6.156,3899.5,3898.4,0.001]
[1754616059228,6.156,3899.5,3896.8,0.447]
[1754616059229,2.56502991,3898.6,3896.8,0.447]
[1754616059420,4.721,3898.5,3896.4,4.719]
[1754616059729,1.94671953,3898.6,3896.6,3.0]
[1754616059930,4.718,3899.0,3896.6,0.55]
[1754616060097,4.718,3899.1,3896.7,0.44553713]
[1754616060294,4.718,3899.1,3896.6,3.0]
[1754616060295,1.4071,3899.7,3896.8,0.447]
[1754616060498,0.3993733,3904.2,3898.6,10.17231862]
[1754616060745,0.770222,3903.0,3898.7,7.0126]
[1754616060923,0.455,3902.9,3899.6,10.86152271]
[1754616061229,1.74950853,3902.7,3899.7,0.54308524]
[1754616061419,4.733,3902.6,3899.6,9.60905487]
[1754616061747,0.1,3903.1,3899.8,5.14]
[1754616061750,2.56286004,3901.9,3899.8,5.14]
[1754616061921,0.04,3899.9,3899.8,5.178]
[1754616062104,0.04,3899.9,3899.8,1.09312118]
[1754616062313,4.732,3902.5,3899.7,2.53984154]
[1754616062532,2.5627216,3902.2,3899.7,2.53984154]
[1754616062832,0.002,3901.4,3899.6,9.60905487]
[1754616063034,0.002,3901.4,3899.7,3.84158668]
[1754616063193,3.0,3901.9,3901.1,0.04]
[1754616063527,0.4305,3902.0,3899.6,9.60905487]
[1754616063726,3.4297,3902.0,3899.7,5.167]
[1754616063927,0.4297,3902.0,3899.7,5.167]
[1754616064126,0.4297,3902.0,3899.7,6.82986549]
[1754616064328,2.56420598,3902.9,3899.8,0.50429966]
[1754616064531,4.715,3902.9,3900.1,0.55]
[1754616064730,2.56233503,3902.7,3900.1,0.55]
[1754616064902,2.56233503,3902.7,3900.0,3.0]
[1754616064903,2.56233503,3902.7,3899.8,1.05429966]
[1754616065095,4.711,3902.9,3900.0,3.0]
[1754616065300,1.20471184,3902.3,3900.1,0.23624952]
[1754616065496,2.56190559,3903.4,3900.2,0.68324952]
[1754616065700,2.56186913,3903.4,3903.3,11.7914035]
[1754616065929,2.56186913,3903.4,3903.3,11.98765302]
[1754616066116,2.5618035,3903.5,3903.3,11.98765302]
[1754616066315,2.5618035,3903.5,3903.4,0.23624952]
[1754616066720,4.08754253,3903.5,3900.2,4.8526]
[1754616066921,2.56236427,3902.7,3900.3,0.23724941]
[1754616067107,10.17231862,3903.3,3900.4,0.23724941]
[1754616067434,3.0,3901.6,3900.1,4.36076418]
[1754616067603,0.23725995,3901.5,3900.2,0.55]
[1754616067801,0.23725995,3901.5,3900.1,4.36076418]
[1754616067802,0.23725995,3901.4,3900.1,4.36076418]
[1754616068002,0.23725995,3901.3,3900.1,4.40076418]
[1754616068237,2.5629997,3901.7,3900.1,4.40076418]
[1754616068401,0.0177,3901.8,3900.1,2.64523236]
[1754616068402,0.23819309,3901.6,3900.1,2.64523236]
[1754616068607,4.6972,3902.3,3900.1,0.04]
[1754616068807,3.84047821,3902.2,3900.1,0.04]
[1754616069013,2.52319099,3901.4,3900.3,8.68556358]
[1754616069208,4.694,3902.3,3900.3,9.25553678]
[1754616069425,2.56306451,3901.6,3900.3,7.90685418]
[1754616069611,4.694,3902.6,3900.3,6.05425418]
[1754616069612,5.1623999,3902.5,3900.3,6.05425418]
[1754616069826,2.5638396,3900.4,3900.3,6.05425418]
[1754616070145,2.5638396,3900.4,3900.3,6.03755418]
[1754616070340,6.11148457,3900.4,3900.1,0.04]
[1754616070541,6.11148457,3900.4,3897.3,2.53470055]
[1754616070542,3.0,3900.1,3897.3,2.53470055]
[1754616070731,11.88762304,3898.0,3896.4,6.156]
[1754616070938,0.54764497,3897.9,3896.5,4.69]
[1754616071237,0.54764497,3897.8,3896.5,1.0846]
[1754616071448,0.54764497,3897.8,3896.4,6.156]
[1754616071449,0.54764497,3897.7,3896.6,4.689]
[1754616071740,0.54764497,3897.7,3894.2,5.76892067]
[1754616071741,0.54764497,3897.6,3894.7,9.71999489]
[1754616071924,0.54764497,3897.5,3894.7,9.71999489]
[1754616072121,0.54764497,3897.4,3894.8,4.87327925]
[1754616072421,0.54764497,3897.3,3894.9,4.58491027]
[1754616072741,0.54764497,3897.2,3894.8,6.157]
[1754616072940,0.54764497,3897.1,3894.9,3.20193644]
[1754616073140,0.54764497,3897.0,3894.9,3.81763644]
[1754616073347,0.54764497,3896.9,3895.0,4.683]
[1754616073509,0.54764497,3896.8,3895.0,2.88553906]
[1754616073718,0.54764497,3896.7,3895.1,0.02567328]
[1754616074023,0.54764497,3896.6,3895.1,0.55]
[1754616074220,0.54764497,3896.5,3895.1,0.45371312]
[1754616074444,0.04,3896.9,3895.1,0.45371312]
[1754616074445,0.54764497,3896.4,3895.1,2.42760955]
[1754616074649,0.54764497,3896.3,3895.2,6.93490816]
[1754616074818,0.54764497,3896.2,3895.2,1.8151]
[1754616075021,0.54764497,3896.1,3895.2,1.5267572]
[1754616075221,0.04,3895.9,3895.3,4.09925439]
[1754616075418,0.54764497,3895.8,3895.3,2.88250506]
[1754616075644,0.54764497,3895.7,3895.4,4.679]
[1754616075950,0.54764497,3895.6,3895.4,4.34097064]
[1754616076135,0.04,3895.9,3895.5,0.43409706]
[1754616076462,0.54642074,3895.8,3894.2,2.13794021]
[1754616076611,0.54642074,3895.7,3894.2,2.13714021]
[1754616076814,0.54642074,3895.6,3893.9,0.001]
[1754616077025,0.54642074,3895.5,3894.0,4.674]
[1754616077233,0.54642074,3895.4,3894.1,3.60046821]
[1754616077459,0.54642074,3895.3,3894.2,2.2696]
[1754616077650,0.54642074,3895.2,3894.3,0.02567855]
[1754616077861,0.34361097,3895.1,3895.0,0.55]
[1754616078063,0.34361097,3895.1,3895.0,7.24139409]
[1754616078358,0.04,3895.9,3895.1,3.0]
[1754616078686,0.04,3895.9,3895.4,8.37527275]
[1754616078969,0.04,3895.9,3895.4,7.96132789]
[1754616079173,0.04,3895.9,3895.5,4.671]
[1754616079356,0.04,3895.9,3895.6,4.671]
[1754616079527,0.04,3895.9,3895.6,0.79430374]
[1754616079725,0.04,3895.9,3895.1,6.16]
[1754616079726,0.04,3895.9,3895.2,4.668]
[1754616079932,0.04,3895.9,3895.3,0.867767]
[1754616080262,0.04,3895.9,3894.9,4.667]
[1754616080451,0.04,3895.9,3894.4,0.36993727]
[1754616080637,0.23681284,3895.8,3893.4,12.78589302]
[1754616080840,0.23681284,3895.7,3893.5,4.665]
[1754616081163,0.04,3895.9,3893.5,4.665]
[1754616081164,0.23681284,3895.6,3893.5,2.45641152]
[1754616081363,0.55,3895.4,3893.4,6.16]
[1754616081549,0.55,3895.2,3893.4,6.16]
[1754616081741,0.55,3895.2,3892.6,10.17231862]
[1754616081742,0.23681284,3895.1,3893.5,4.66]
[1754616081943,2.80422047,3895.0,3893.2,4.66]
[1754616082139,2.56752593,3894.8,3893.3,0.466]
[1754616082340,2.56752593,3894.8,3892.1,0.04]
[1754616082341,2.5677521,3894.5,3892.1,0.04]
[1754616082539,3.23681284,3894.4,3892.0,4.658]
[1754616082773,3.0,3893.9,3891.6,4.17216619]
[1754616082969,0.4409,3894.3,3893.9,0.1288]
[1754616083169,0.4409,3894.3,3891.1,0.04]
[1754616083170,3.0,3894.1,3893.8,0.1288]
[1754616083370,0.23684384,3894.0,3892.3,0.02569175]
[1754616083537,0.23684384,3893.9,3892.3,8.84023895]
[1754616083871,12.71737544,3893.2,3892.9,10.17231862]
[1754616084165,12.71737544,3893.2,3893.0,2.56871307]
[1754616084166,10.52003413,3893.2,3893.0,2.56871307]
[1754616084368,6.31209955,3893.2,3893.1,2.69744709]
[1754616084667,4.71999775,3893.2,3892.9,7.52736624]
[1754616084964,4.71999775,3893.2,3893.1,0.1288]
[1754616085171,4.71999775,3893.2,3893.1,2.38923956]
[1754616085378,4.71999775,3893.2,3893.1,2.51803956]
[1754616085546,0.04,3893.9,3893.1,0.1288]
[1754616085747,0.04,3893.9,3893.8,10.17231862]
[1754616085962,0.04,3893.9,3893.8,17.53230394]
[1754616086581,0.04,3893.9,3893.8,13.16669573]
[1754616086783,0.04,3893.9,3893.5,4.66]
[1754616087148,0.04,3893.9,3893.8,1.28419082]
[1754616087350,0.04,3893.9,3893.8,2.69698532]
[1754616087687,0.04,3893.9,3893.8,2.56818532]
[1754616087883,0.04,3893.9,3893.8,7.35098532]
[1754616088182,0.04,3893.9,3893.2,5.44775044]
[1754616088485,0.04,3893.9,3893.8,2.56818532]
[1754616088686,0.04,3893.9,3893.3,4.654]
[1754616088889,0.04,3893.9,3893.6,7.21927806]
[1754616089184,0.04,3893.9,3893.8,2.56818532]
[1754616089384,0.04,3894.9,3893.8,0.02568185]
[1754616089587,0.04,3894.9,3894.1,8.86298221]
[1754616089754,0.04,3894.9,3894.2,4.646]
[1754616089949,0.04,3894.9,3893.4,10.17231862]
[1754616090149,12.71196156,3893.9,3893.8,2.56812465]
[1754616090363,13.25671941,3893.9,3893.8,2.56812465]
[1754616090566,13.25671941,3893.9,3893.5,4.645]
[1754616090783,0.54475785,3893.8,3892.5,5.27202352]
[1754616090987,12.71196156,3893.9,3893.8,2.56818532]
[1754616091190,13.25671992,3893.9,3893.8,7.20718532]
[1754616091394,12.28624158,3893.9,3893.8,17.37950394]
[1754616091550,12.28624158,3893.9,3893.8,14.81131862]
[1754616091747,12.28624158,3893.9,3893.8,17.37950394]
[1754616091973,0.04,3894.9,3893.8,14.81131862]
[1754616092174,11.70812304,3895.7,3895.6,2.56699866]
[1754616092380,0.002,3896.3,3896.2,2.56660335]
[1754616092651,0.002,3896.3,3896.2,14.80831862]
[1754616092883,0.002,3896.3,3896.2,12.73892197]
[1754616093185,0.002,3896.3,3896.2,16.45096116]
[1754616093387,0.002,3896.3,3896.2,15.1679011]
[1754616093590,0.002,3896.3,3896.2,4.635]
[1754616093904,0.002,3896.3,3895.4,0.102725]
[1754616094201,0.002,3896.3,3895.5,4.629]
[1754616094354,0.002,3896.3,3894.5,0.55]
[1754616094553,0.4409,3896.2,3894.3,2.56785211]
[1754616094754,0.4409,3896.2,3893.5,6.162]
[1754616094755,2.4046,3896.1,3893.5,6.162]
[1754616095073,0.55,3895.9,3894.6,2.25952632]
[1754616095271,0.55,3895.9,3894.6,2.56765727]
[1754616095587,0.55,3895.9,3894.4,4.635]
[1754616095892,0.55,3895.9,3895.0,0.001]
[1754616096184,0.55,3895.7,3895.0,0.0002]
[1754616096350,0.55,3895.7,3894.5,4.634]
[1754616096351,0.23728807,3895.6,3894.5,3.35059794]
[1754616096552,0.55,3896.2,3894.5,3.35059794]
[1754616096553,0.23728807,3895.5,3894.5,1.06706325]
[1754616096754,0.23728807,3895.5,3894.2,10.17231862]
[1754616096755,0.23728807,3895.4,3895.3,2.56719636]
[1754616097282,0.23728807,3895.4,3895.0,4.628]
[1754616097481,0.002,3896.3,3895.2,2.56723103]
[1754616097482,0.23728807,3895.3,3895.2,2.56723103]
[1754616098465,0.23728807,3895.3,3895.2,5.579089]
[1754616098651,0.23728807,3895.3,3895.2,3.01185797]
[1754616098855,0.23728807,3895.3,3895.2,4.96308696]
[1754616099066,0.23728807,3895.3,3895.2,4.03908579]
[1754616099270,0.23728807,3895.3,3895.2,7.37578187]
[1754616099484,0.23728807,3895.3,3895.2,10.07678187]
[1754616099698,0.23728807,3895.3,3894.9,3.0]
[1754616099879,0.23728807,3895.2,3894.6,2.703]
[1754616100080,0.23728807,3895.1,3894.8,4.616]
[1754616100310,0.23728807,3895.0,3894.1,2.566]
[1754616100486,0.23728807,3894.9,3894.2,4.615]
[1754616100829,0.23728807,3894.8,3894.3,4.613]
[1754616101009,0.23728807,3894.7,3894.6,2.56765778]
[1754616101723,0.23728807,3894.7,3894.6,4.609]
[1754616101920,0.23728807,3894.7,3894.6,5.27065778]
[1754616102096,0.23728807,3894.7,3894.6,9.87765778]
[1754616102289,0.04,3895.9,3894.7,2.703]
[1754616102489,0.04,3895.9,3895.8,2.69486688]
[1754616102717,1.8546,3898.1,3896.4,2.56647161]
[1754616103032,0.4409,3898.8,3896.8,2.56620817]
[1754616103216,0.4409,3898.8,3896.8,9.87120817]
[1754616103386,2.2955,3898.4,3896.8,2.69420817]
[1754616103596,0.5029,3897.9,3896.8,0.128]
[1754616103812,1.9945,3897.7,3896.8,0.128]
[1754616104117,0.59,3896.9,3896.8,0.128]
[1754616104485,0.04,3896.9,3896.8,2.69420817]
[1754616105218,0.04,3896.9,3896.8,2.56620817]
[1754616105387,0.04,3896.9,3896.8,2.69420817]
[1754616105590,0.002,3897.7,3897.4,2.5658131]
[1754616106028,0.002,3897.7,3897.4,2.6938131]
[1754616106398,0.002,3897.7,3897.4,2.5658131]
[1754616106718,0.002,3897.7,3897.6,2.56568144]
[1754616107106,0.002,3897.7,3897.6,2.69368144]
[1754616107623,0.04,3897.9,3897.8,2.56554979]
[1754616107624,1e-08,3897.9,3897.8,2.56554979]
[1754616107783,1e-08,3897.9,3897.8,10.14954979]
[1754616107988,1e-08,3897.9,3897.8,10.27754979]
[1754616108422,1e-08,3897.9,3897.8,2.69354979]
[1754616108594,1e-08,3897.9,3897.8,0.128]
[1754616108801,3.00740001,3897.9,3897.8,0.128]
[1754616109307,0.55000001,3897.9,3897.8,0.128]
[1754616109686,0.55000001,3897.9,3897.8,2.69354979]
[1754616110228,1e-08,3897.9,3897.8,2.69354979]
[1754616110932,1e-08,3897.9,3897.8,0.128]
[1754616111323,1e-08,3897.9,3897.8,2.69354979]
[1754616112520,1e-08,3897.9,3897.8,0.128]
[1754616112827,1e-08,3897.9,3897.8,2.69354979]
[1754616113123,1e-08,3897.9,3897.8,7.25454979]
[1754616113690,1e-08,3897.9,3897.8,10.25454979]
[1754616113893,1e-08,3897.9,3897.8,5.69354979]
[1754616114129,1e-08,3897.9,3897.8,10.25154979]
[1754616115718,1e-08,3898.3,3898.2,2.56528654]
[1754616116028,1e-08,3898.3,3898.2,12.80428654]
[1754616116190,1e-08,3898.3,3898.2,12.80828681]
[1754616116400,1e-08,3898.3,3898.2,8.26028681]